[Event "Titled Tuesday Blitz March 29 Late 2022"]
[White "Barbero Sendic, Alejandro"]
[Black "Fernandez Siles, Luis"]
[WhiteFideId "3001288"]
[BlackFideId "2209420"]
[WhiteElo "2314"]
[BlackElo "2212"]
[Result "0-1"]
[Round "05"]
[TimeControl "180+1"]
[Date "2022.03.30"]
[WhiteClock "0:00:29"]
[BlackClock "0:00:17"]

1. d4 {[%clk 0:02:55]}  Nf6 {[%clk 0:02:58]} 2. Nc3 {[%clk 0:02:55]}  d5 {[%clk 0:02:57]} 3. Bf4 {[%clk 0:02:54]}  c5 {[%clk 0:02:53]} 4. e4 {[%clk 0:02:52]}  Nxe4 {[%clk 0:02:49]} 5. Nxe4 {[%clk 0:02:49]}  dxe4 {[%clk 0:02:48]} 6. dxc5 {[%clk 0:02:49]}  Qa5+ {[%clk 0:02:33]} 7. Qd2 {[%clk 0:02:48]}  Qxc5 {[%clk 0:02:32]} 8. O-O-O {[%clk 0:02:48]}  Nc6 {[%clk 0:02:29]} 9. Ne2 {[%clk 0:02:19]}  e5 {[%clk 0:02:13]} 10. Be3 {[%clk 0:02:19]}  Qa5 {[%clk 0:02:05]} 11. Qxa5 {[%clk 0:02:18]}  Nxa5 {[%clk 0:02:05]} 12. Nc3 {[%clk 0:02:19]}  Bg4 {[%clk 0:01:33]} 13. Bb5+ {[%clk 0:02:09]}  Nc6 {[%clk 0:01:31]} 14. Rd5 {[%clk 0:02:02]}  f6 {[%clk 0:01:21]} 15. Nxe4 {[%clk 0:02:02]}  Be6 {[%clk 0:01:20]} 16. Rd2 {[%clk 0:01:56]}  Be7 {[%clk 0:01:14]} 17. Nd6+ {[%clk 0:01:37]}  Bxd6 {[%clk 0:01:09]} 18. Rxd6 {[%clk 0:01:38]}  Bd7 {[%clk 0:01:06]} 19. Rhd1 {[%clk 0:01:36]}  a6 {[%clk 0:00:53]} 20. Bc4 {[%clk 0:01:21]}  Bf5 {[%clk 0:00:25]} 21. g4 {[%clk 0:00:46]}  Bxg4 {[%clk 0:00:23]} 22. Rg1 {[%clk 0:00:46]}  h5 {[%clk 0:00:20]} 23. f3 {[%clk 0:00:39]}  Bxf3 {[%clk 0:00:20]} 24. Rxg7 {[%clk 0:00:39]}  Rd8 {[%clk 0:00:19]} 25. Rxf6 {[%clk 0:00:29]}  Rd1# {[%clk 0:00:17]} 0-1


[Site "https://www.chess.com"]

[Event "Titled Tuesday Blitz March 29 Late 2022"]
[White "Bluebaum, Matthias"]
[Black "Sarana, Alexey"]
[WhiteFideId "24651516"]
[BlackFideId "24133795"]
[WhiteElo "2550"]
[BlackElo "2666"]
[Result "0-1"]
[Round "05"]
[TimeControl "180+1"]
[Date "2022.03.29"]
[WhiteClock "0:00:05"]
[BlackClock "0:00:19"]

1. b3 {[%clk 0:02:34]}  Nf6 {[%clk 0:03:00]} 2. Bb2 {[%clk 0:02:34]}  d5 {[%clk 0:03:01]} 3. Nf3 {[%clk 0:02:34]}  Bf5 {[%clk 0:03:02]} 4. d3 {[%clk 0:02:34]}  e6 {[%clk 0:03:01]} 5. g3 {[%clk 0:02:35]}  h6 {[%clk 0:03:01]} 6. Bg2 {[%clk 0:02:35]}  Be7 {[%clk 0:03:02]} 7. O-O {[%clk 0:02:36]}  O-O {[%clk 0:03:02]} 8. Nbd2 {[%clk 0:02:37]}  Bh7 {[%clk 0:03:02]} 9. Re1 {[%clk 0:02:37]}  c5 {[%clk 0:03:03]} 10. Ne5 {[%clk 0:02:38]}  Nfd7 {[%clk 0:03:02]} 11. Nxd7 {[%clk 0:02:35]}  Qxd7 {[%clk 0:03:02]} 12. e4 {[%clk 0:02:35]}  Nc6 {[%clk 0:02:59]} 13. exd5 {[%clk 0:02:32]}  exd5 {[%clk 0:02:57]} 14. Qh5 {[%clk 0:02:33]}  Rad8 {[%clk 0:02:51]} 15. Nf3 {[%clk 0:02:26]}  Bg6 {[%clk 0:02:45]} 16. Qh3 {[%clk 0:02:11]}  Bf5 {[%clk 0:02:45]} 17. g4 {[%clk 0:02:12]}  Bxg4 {[%clk 0:02:46]} 18. Qg3 {[%clk 0:02:13]}  d4 {[%clk 0:01:54]} 19. Rxe7 {[%clk 0:01:55]}  Nxe7 {[%clk 0:01:55]} 20. Ne5 {[%clk 0:01:55]}  Qe6 {[%clk 0:01:54]} 21. Nxg4 {[%clk 0:01:49]}  f5 {[%clk 0:01:54]} 22. Qe5 {[%clk 0:01:48]}  Qf7 {[%clk 0:01:52]} 23. Nxh6+ {[%clk 0:01:23]}  gxh6 {[%clk 0:01:51]} 24. Qxc5 {[%clk 0:01:24]}  b6 {[%clk 0:01:48]} 25. Qe5 {[%clk 0:01:22]}  Qf6 {[%clk 0:01:45]} 26. Qg3+ {[%clk 0:00:59]}  Ng6 {[%clk 0:01:43]} 27. Bf3 {[%clk 0:00:52]}  Kh7 {[%clk 0:01:36]} 28. Kh1 {[%clk 0:00:52]}  Rg8 {[%clk 0:01:35]} 29. Re1 {[%clk 0:00:46]}  Rde8 {[%clk 0:01:09]} 30. Rf1 {[%clk 0:00:35]}  Ne5 {[%clk 0:00:42]} 31. Qf4 {[%clk 0:00:28]}  Nxf3 {[%clk 0:00:42]} 32. Qxf3 {[%clk 0:00:29]}  Rg5 {[%clk 0:00:40]} 33. h3 {[%clk 0:00:25]}  Reg8 {[%clk 0:00:39]} 34. Bc1 {[%clk 0:00:21]}  R5g6 {[%clk 0:00:36]} 35. Bf4 {[%clk 0:00:21]}  Qe6 {[%clk 0:00:33]} 36. Qb7+ {[%clk 0:00:11]}  R8g7 {[%clk 0:00:33]} 37. Qf3 {[%clk 0:00:12]}  a6 {[%clk 0:00:27]} 38. Kh2 {[%clk 0:00:12]}  b5 {[%clk 0:00:24]} 39. Bg3 {[%clk 0:00:12]}  b4 {[%clk 0:00:22]} 40. Qf4 {[%clk 0:00:09]}  Rd7 {[%clk 0:00:20]} 41. f3 {[%clk 0:00:08]}  Rdg7 {[%clk 0:00:19]} 42. Re1 {[%clk 0:00:08]}  Qxe1 {[%clk 0:00:17]} 43. Qxh6+ {[%clk 0:00:03]}  Kxh6 {[%clk 0:00:17]} 44. Bf4+ {[%clk 0:00:04]}  Kh7 {[%clk 0:00:17]} 45. Bg5 {[%clk 0:00:05]}  Rxg5 {[%clk 0:00:17]} 46. h4 {[%clk 0:00:05]}  Rg2+ {[%clk 0:00:18]} 47. Kh3 {[%clk 0:00:05]}  Qh1# {[%clk 0:00:19]} 0-1


[Site "https://www.chess.com"]

[Event "Titled Tuesday Blitz March 29 Late 2022"]
[White "Brizzi, Milagros Tatiana"]
[Black "Afshar, Niusha"]
[WhiteFideId "128350"]
[BlackFideId "12509892"]
[WhiteElo "1844"]
[BlackElo "1862"]
[Result "1-0"]
[Round "05"]
[TimeControl "180+1"]
[Date "2022.03.30"]
[WhiteClock "0:01:50"]
[BlackClock "0:01:19"]

1. e4 {[%clk 0:03:00]}  c5 {[%clk 0:02:58]} 2. Nf3 {[%clk 0:03:00]}  Nc6 {[%clk 0:02:57]} 3. d3 {[%clk 0:02:50]}  e6 {[%clk 0:02:56]} 4. g3 {[%clk 0:02:48]}  d5 {[%clk 0:02:54]} 5. Nbd2 {[%clk 0:02:44]}  Nge7 {[%clk 0:02:38]} 6. Bg2 {[%clk 0:02:43]}  Ng6 {[%clk 0:02:33]} 7. O-O {[%clk 0:02:36]}  Be7 {[%clk 0:02:30]} 8. c3 {[%clk 0:02:31]}  O-O {[%clk 0:02:20]} 9. Re1 {[%clk 0:02:30]}  Qc7 {[%clk 0:02:14]} 10. h4 {[%clk 0:02:29]}  Nge5 {[%clk 0:02:10]} 11. Nxe5 {[%clk 0:02:25]}  Nxe5 {[%clk 0:02:11]} 12. d4 {[%clk 0:02:22]}  cxd4 {[%clk 0:02:06]} 13. cxd4 {[%clk 0:02:23]}  Nc4 {[%clk 0:01:57]} 14. exd5 {[%clk 0:02:17]}  exd5 {[%clk 0:01:50]} 15. Bxd5 {[%clk 0:02:12]}  Nxd2 {[%clk 0:01:49]} 16. Bxd2 {[%clk 0:02:08]}  Bf6 {[%clk 0:01:46]} 17. Be3 {[%clk 0:02:00]}  Rd8 {[%clk 0:01:41]} 18. Qb3 {[%clk 0:01:59]}  Rb8 {[%clk 0:01:34]} 19. Bf4 {[%clk 0:01:52]}  Qd7 {[%clk 0:01:19]} 20. Bxb8 {[%clk 0:01:50]} 1-0


[Site "https://www.chess.com"]

[Event "Titled Tuesday Blitz March 29 Late 2022"]
[White "Bryakin, Mikhail"]
[Black "Sanchez, Robert"]
[WhiteFideId "4165314"]
[BlackFideId "2034360"]
[WhiteElo "2417"]
[BlackElo "2285"]
[Result "1-0"]
[Round "05"]
[TimeControl "180+1"]
[Date "2022.03.30"]
[WhiteClock "0:02:10"]
[BlackClock "0:00:22"]

1. e4 {[%clk 0:02:59]}  e6 {[%clk 0:03:00]} 2. d4 {[%clk 0:02:58]}  d5 {[%clk 0:03:00]} 3. e5 {[%clk 0:02:58]}  c5 {[%clk 0:03:00]} 4. c3 {[%clk 0:02:58]}  Nc6 {[%clk 0:03:01]} 5. Nf3 {[%clk 0:02:57]}  Bd7 {[%clk 0:03:00]} 6. Be2 {[%clk 0:02:56]}  Nge7 {[%clk 0:03:01]} 7. O-O {[%clk 0:02:57]}  Nf5 {[%clk 0:02:59]} 8. a3 {[%clk 0:02:56]}  c4 {[%clk 0:02:40]} 9. g3 {[%clk 0:02:54]}  Na5 {[%clk 0:02:38]} 10. Nbd2 {[%clk 0:02:52]}  h5 {[%clk 0:02:28]} 11. h4 {[%clk 0:02:51]}  Be7 {[%clk 0:02:26]} 12. Kg2 {[%clk 0:02:52]}  g5 {[%clk 0:02:24]} 13. hxg5 {[%clk 0:02:46]}  h4 {[%clk 0:02:22]} 14. g4 {[%clk 0:02:46]}  h3+ {[%clk 0:02:10]} 15. Kh2 {[%clk 0:02:46]}  Nh4 {[%clk 0:02:09]} 16. Nxh4 {[%clk 0:02:47]}  Rxh4 {[%clk 0:02:08]} 17. f4 {[%clk 0:02:47]}  Qb6 {[%clk 0:02:03]} 18. Nf3 {[%clk 0:02:34]}  Rh8 {[%clk 0:01:51]} 19. Rb1 {[%clk 0:02:30]}  O-O-O {[%clk 0:01:49]} 20. Be3 {[%clk 0:02:30]}  Bb5 {[%clk 0:01:29]} 21. f5 {[%clk 0:02:28]}  Rdg8 {[%clk 0:01:25]} 22. f6 {[%clk 0:02:27]}  Bd8 {[%clk 0:01:26]} 23. Qc2 {[%clk 0:02:24]}  Qc6 {[%clk 0:01:24]} 24. Rg1 {[%clk 0:02:20]}  Ba4 {[%clk 0:01:23]} 25. Qd2 {[%clk 0:02:20]}  Nb3 {[%clk 0:01:23]} 26. Qe1 {[%clk 0:02:21]}  b5 {[%clk 0:01:16]} 27. Rg3 {[%clk 0:02:20]}  a5 {[%clk 0:01:14]} 28. Rxh3 {[%clk 0:02:20]}  Rxh3+ {[%clk 0:01:13]} 29. Kxh3 {[%clk 0:02:21]}  Rh8+ {[%clk 0:01:03]} 30. Kg2 {[%clk 0:02:21]}  Qe8 {[%clk 0:01:02]} 31. Qf2 {[%clk 0:02:20]}  Qg8 {[%clk 0:00:57]} 32. Rh1 {[%clk 0:02:20]}  Rxh1 {[%clk 0:00:57]} 33. Kxh1 {[%clk 0:02:21]}  Qg6 {[%clk 0:00:58]} 34. Bf1 {[%clk 0:02:14]}  b4 {[%clk 0:00:54]} 35. axb4 {[%clk 0:02:14]}  axb4 {[%clk 0:00:54]} 36. cxb4 {[%clk 0:02:13]}  Qb1 {[%clk 0:00:48]} 37. Kg2 {[%clk 0:02:12]}  Bb5 {[%clk 0:00:44]} 38. Nh4 {[%clk 0:02:12]}  Bb6 {[%clk 0:00:26]} 39. g6 {[%clk 0:02:12]}  c3 {[%clk 0:00:22]} 40. bxc3 {[%clk 0:02:10]} 1-0


[Site "https://www.chess.com"]

[Event "Titled Tuesday Blitz March 29 Late 2022"]
[White "Burke, Paul"]
[Black "Jarocka, Liwia"]
[WhiteFideId "2605767"]
[BlackFideId "21807558"]
[WhiteElo "1863"]
[BlackElo "1896"]
[Result "0-1"]
[Round "05"]
[TimeControl "180+1"]
[Date "2022.03.30"]
[WhiteClock "0:02:25"]
[BlackClock "0:02:21"]

1. e4 {[%clk 0:03:00]}  c5 {[%clk 0:02:59]} 2. d4 {[%clk 0:03:00]}  cxd4 {[%clk 0:02:59]} 3. c3 {[%clk 0:03:01]}  dxc3 {[%clk 0:02:58]} 4. Nxc3 {[%clk 0:03:01]}  Nc6 {[%clk 0:02:58]} 5. Nf3 {[%clk 0:03:01]}  d6 {[%clk 0:02:58]} 6. Bc4 {[%clk 0:03:00]}  e6 {[%clk 0:02:56]} 7. O-O {[%clk 0:02:59]}  a6 {[%clk 0:02:55]} 8. a3 {[%clk 0:02:57]}  Be7 {[%clk 0:02:54]} 9. Qe2 {[%clk 0:02:57]}  Nf6 {[%clk 0:02:53]} 10. Rd1 {[%clk 0:02:57]}  Qc7 {[%clk 0:02:53]} 11. Bg5 {[%clk 0:02:56]}  O-O {[%clk 0:02:52]} 12. Rac1 {[%clk 0:02:55]}  h6 {[%clk 0:02:51]} 13. Bh4 {[%clk 0:02:49]}  Bd7 {[%clk 0:02:47]} 14. Ba2 {[%clk 0:02:48]}  Rac8 {[%clk 0:02:43]} 15. Nd5 {[%clk 0:02:47]}  exd5 {[%clk 0:02:40]} 16. exd5 {[%clk 0:02:47]}  Rfe8 {[%clk 0:02:40]} 17. dxc6 {[%clk 0:02:45]}  Bxc6 {[%clk 0:02:41]} 18. Bb1 {[%clk 0:02:37]}  Bxf3 {[%clk 0:02:33]} 19. Qxf3 {[%clk 0:02:37]}  Qxc1 {[%clk 0:02:32]} 20. Bxf6 {[%clk 0:02:25]}  Bxf6 {[%clk 0:02:27]} 21. Qd3 {[%clk 0:02:25]}  Re1+ {[%clk 0:02:21]} 0-1


[Site "https://www.chess.com"]

[Event "Titled Tuesday Blitz March 29 Late 2022"]
[White "Curtis, John"]
[Black "Dylag, Emilia"]
[WhiteFideId "3200256"]
[BlackFideId "21805172"]
[WhiteElo "2203"]
[BlackElo "1932"]
[Result "1-0"]
[Round "05"]
[TimeControl "180+1"]
[Date "2022.03.30"]
[WhiteClock "0:00:09"]
[BlackClock "0:00:20"]

1. d4 {[%clk 0:03:00]}  d5 {[%clk 0:02:58]} 2. Nf3 {[%clk 0:02:59]}  Bg4 {[%clk 0:02:57]} 3. c4 {[%clk 0:02:57]}  e6 {[%clk 0:02:55]} 4. Qd2 {[%clk 0:02:47]}  Nf6 {[%clk 0:02:53]} 5. Nc3 {[%clk 0:02:45]}  Bb4 {[%clk 0:02:52]} 6. Qf4 {[%clk 0:02:42]}  dxc4 {[%clk 0:02:46]} 7. Ne5 {[%clk 0:02:40]}  Bh5 {[%clk 0:02:38]} 8. Nxc4 {[%clk 0:02:36]}  Nc6 {[%clk 0:02:38]} 9. Bd2 {[%clk 0:02:19]}  Qxd4 {[%clk 0:02:25]} 10. Qxd4 {[%clk 0:01:54]}  Nxd4 {[%clk 0:02:24]} 11. Rc1 {[%clk 0:01:53]}  O-O {[%clk 0:02:19]} 12. f3 {[%clk 0:01:46]}  Rfd8 {[%clk 0:02:13]} 13. e3 {[%clk 0:01:42]}  Nc6 {[%clk 0:02:11]} 14. Nb5 {[%clk 0:01:34]}  Bxd2+ {[%clk 0:02:05]} 15. Nxd2 {[%clk 0:01:34]}  a6 {[%clk 0:02:05]} 16. Nc3 {[%clk 0:01:28]}  Nb4 {[%clk 0:02:02]} 17. e4 {[%clk 0:01:15]}  Nd3+ {[%clk 0:01:55]} 18. Bxd3 {[%clk 0:01:14]}  Rxd3 {[%clk 0:01:56]} 19. Ke2 {[%clk 0:01:15]}  Rad8 {[%clk 0:01:55]} 20. Nb3 {[%clk 0:00:58]}  b6 {[%clk 0:01:50]} 21. g4 {[%clk 0:00:54]}  Bg6 {[%clk 0:01:49]} 22. h4 {[%clk 0:00:52]}  h5 {[%clk 0:01:46]} 23. g5 {[%clk 0:00:52]}  Ne8 {[%clk 0:01:32]} 24. Rhd1 {[%clk 0:00:47]}  Rxd1 {[%clk 0:01:28]} 25. Nxd1 {[%clk 0:00:47]}  Rxd1 {[%clk 0:01:28]} 26. Kxd1 {[%clk 0:00:47]}  Nd6 {[%clk 0:01:26]} 27. Rxc7 {[%clk 0:00:44]}  f6 {[%clk 0:01:13]} 28. Rc6 {[%clk 0:00:43]}  Nf7 {[%clk 0:01:07]} 29. gxf6 {[%clk 0:00:43]}  gxf6 {[%clk 0:01:08]} 30. Rxe6 {[%clk 0:00:42]}  Kg7 {[%clk 0:01:06]} 31. f4 {[%clk 0:00:41]}  Nd8 {[%clk 0:01:02]} 32. Rd6 {[%clk 0:00:40]}  Nf7 {[%clk 0:00:59]} 33. Rxb6 {[%clk 0:00:40]}  Bxe4 {[%clk 0:00:58]} 34. Nd2 {[%clk 0:00:39]}  Bd3 {[%clk 0:00:56]} 35. Rb7 {[%clk 0:00:38]}  Kg6 {[%clk 0:00:56]} 36. Rb3 {[%clk 0:00:37]}  Bb5 {[%clk 0:00:55]} 37. Rb4 {[%clk 0:00:27]}  Kf5 {[%clk 0:00:51]} 38. Ne4 {[%clk 0:00:26]}  a5 {[%clk 0:00:44]} 39. Ng3+ {[%clk 0:00:20]}  Kg4 {[%clk 0:00:43]} 40. Rxb5 {[%clk 0:00:20]}  Kxg3 {[%clk 0:00:42]} 41. Rxh5 {[%clk 0:00:20]}  Kxf4 {[%clk 0:00:42]} 42. Rxa5 {[%clk 0:00:20]}  Kg4 {[%clk 0:00:43]} 43. h5 {[%clk 0:00:20]}  f5 {[%clk 0:00:43]} 44. Rxf5 {[%clk 0:00:17]}  Kxf5 {[%clk 0:00:43]} 45. a4 {[%clk 0:00:18]}  Nd6 {[%clk 0:00:41]} 46. b4 {[%clk 0:00:17]}  Kg5 {[%clk 0:00:39]} 47. Ke2 {[%clk 0:00:17]}  Kxh5 {[%clk 0:00:39]} 48. Ke3 {[%clk 0:00:14]}  Kg6 {[%clk 0:00:38]} 49. Kd4 {[%clk 0:00:14]}  Kf7 {[%clk 0:00:39]} 50. Kd5 {[%clk 0:00:14]}  Ke7 {[%clk 0:00:39]} 51. Kc6 {[%clk 0:00:14]}  Nc4 {[%clk 0:00:36]} 52. Kc7 {[%clk 0:00:11]}  Ke8 {[%clk 0:00:29]} 53. b5 {[%clk 0:00:11]}  Na5 {[%clk 0:00:24]} 54. b6 {[%clk 0:00:09]}  Ke7 {[%clk 0:00:21]} 55. b7 {[%clk 0:00:09]}  Nxb7 {[%clk 0:00:20]} 56. Kxb7 {[%clk 0:00:09]} 1-0


[Site "https://www.chess.com"]

[Event "Titled Tuesday Blitz March 29 Late 2022"]
[White "Denishev, Marat"]
[Black "Samarth, J Rao"]
[WhiteFideId "24131563"]
[BlackFideId "46652370"]
[WhiteElo "2197"]
[BlackElo "1514"]
[Result "1-0"]
[Round "05"]
[TimeControl "180+1"]
[Date "2022.03.30"]
[WhiteClock "0:00:14"]
[BlackClock "0:00:19"]

1. e4 {[%clk 0:03:00]}  c5 {[%clk 0:02:39]} 2. Nf3 {[%clk 0:03:00]}  d6 {[%clk 0:02:39]} 3. Bb5+ {[%clk 0:02:58]}  Nd7 {[%clk 0:02:39]} 4. O-O {[%clk 0:02:57]}  Nf6 {[%clk 0:02:38]} 5. Re1 {[%clk 0:02:56]}  a6 {[%clk 0:02:38]} 6. Bxd7+ {[%clk 0:02:54]}  Bxd7 {[%clk 0:02:38]} 7. c4 {[%clk 0:02:53]}  e5 {[%clk 0:02:37]} 8. Nc3 {[%clk 0:02:53]}  g6 {[%clk 0:02:34]} 9. d3 {[%clk 0:02:53]}  Bg7 {[%clk 0:02:35]} 10. Bg5 {[%clk 0:02:52]}  h6 {[%clk 0:02:35]} 11. Bh4 {[%clk 0:02:52]}  g5 {[%clk 0:02:35]} 12. Bg3 {[%clk 0:02:52]}  b5 {[%clk 0:02:32]} 13. Nd2 {[%clk 0:02:50]}  b4 {[%clk 0:02:32]} 14. Nd5 {[%clk 0:02:49]}  Nxd5 {[%clk 0:02:32]} 15. cxd5 {[%clk 0:02:49]}  O-O {[%clk 0:02:31]} 16. Nc4 {[%clk 0:02:49]}  Qc7 {[%clk 0:02:32]} 17. Qh5 {[%clk 0:02:37]}  a5 {[%clk 0:02:29]} 18. h4 {[%clk 0:02:35]}  f6 {[%clk 0:02:29]} 19. Rac1 {[%clk 0:02:30]}  Be8 {[%clk 0:02:23]} 20. Qe2 {[%clk 0:02:23]}  Qe7 {[%clk 0:02:15]} 21. Ne3 {[%clk 0:02:03]}  Bd7 {[%clk 0:02:09]} 22. Qf3 {[%clk 0:02:03]}  g4 {[%clk 0:02:01]} 23. Qe2 {[%clk 0:01:52]}  h5 {[%clk 0:01:59]} 24. Nf5 {[%clk 0:01:46]}  Bxf5 {[%clk 0:01:53]} 25. exf5 {[%clk 0:01:47]}  Bh6 {[%clk 0:01:51]} 26. Rc4 {[%clk 0:01:46]}  Qb7 {[%clk 0:01:46]} 27. Qe4 {[%clk 0:01:44]}  Kh7 {[%clk 0:01:45]} 28. f4 {[%clk 0:01:36]}  gxf3 {[%clk 0:01:40]} 29. Qxf3 {[%clk 0:01:35]}  Rg8 {[%clk 0:01:40]} 30. Kh2 {[%clk 0:01:34]}  Qf7 {[%clk 0:01:18]} 31. Bf2 {[%clk 0:01:05]}  Bf4+ {[%clk 0:00:58]} 32. Rxf4 {[%clk 0:01:02]}  exf4 {[%clk 0:00:58]} 33. Re6 {[%clk 0:01:03]}  Rg4 {[%clk 0:00:50]} 34. Qe2 {[%clk 0:00:55]}  Kh6 {[%clk 0:00:33]} 35. g3 {[%clk 0:00:25]}  Rag8 {[%clk 0:00:31]} 36. Kh3 {[%clk 0:00:24]}  Qg7 {[%clk 0:00:27]} 37. Qf3 {[%clk 0:00:19]}  fxg3 {[%clk 0:00:21]} 38. Be3+ {[%clk 0:00:17]}  Kh7 {[%clk 0:00:20]} 39. Kg2 {[%clk 0:00:15]}  Rxh4 {[%clk 0:00:19]} 40. Bf4 {[%clk 0:00:14]}  Rh2+ {[%clk 0:00:19]} 41. Kg1 {[%clk 0:00:15]}  Rf2 {[%clk 0:00:19]} 42. Qxh5+ {[%clk 0:00:14]} 1-0


[Site "https://www.chess.com"]

[Event "Titled Tuesday Blitz March 29 Late 2022"]
[White "Dreev, Aleksey"]
[Black "Naroditsky, Daniel"]
[WhiteFideId "4100107"]
[BlackFideId "2026961"]
[WhiteElo "2625"]
[BlackElo "2608"]
[Result "0-1"]
[Round "05"]
[TimeControl "180+1"]
[Date "2022.03.29"]
[WhiteClock "0:00:04"]
[BlackClock "0:00:05"]

1. d4 {[%clk 0:03:00]}  Nf6 {[%clk 0:02:59]} 2. c4 {[%clk 0:03:00]}  g6 {[%clk 0:02:59]} 3. Nc3 {[%clk 0:03:00]}  Bg7 {[%clk 0:02:59]} 4. e4 {[%clk 0:02:59]}  d6 {[%clk 0:03:00]} 5. Bd3 {[%clk 0:02:58]}  O-O {[%clk 0:02:59]} 6. Nge2 {[%clk 0:02:58]}  Nc6 {[%clk 0:03:00]} 7. O-O {[%clk 0:02:56]}  Nd7 {[%clk 0:02:59]} 8. Be3 {[%clk 0:02:51]}  e5 {[%clk 0:02:59]} 9. Bc2 {[%clk 0:02:51]}  exd4 {[%clk 0:02:48]} 10. Nxd4 {[%clk 0:02:51]}  Nde5 {[%clk 0:02:49]} 11. Nxc6 {[%clk 0:02:29]}  bxc6 {[%clk 0:02:48]} 12. c5 {[%clk 0:02:29]}  Nc4 {[%clk 0:02:28]} 13. Bc1 {[%clk 0:02:28]}  dxc5 {[%clk 0:02:17]} 14. Qe2 {[%clk 0:02:27]}  Be6 {[%clk 0:01:59]} 15. Bb3 {[%clk 0:02:01]}  Ne5 {[%clk 0:02:00]} 16. Bxe6 {[%clk 0:01:42]}  fxe6 {[%clk 0:02:00]} 17. Rd1 {[%clk 0:01:42]}  Qh4 {[%clk 0:01:59]} 18. f4 {[%clk 0:00:45]}  Ng4 {[%clk 0:01:48]} 19. h3 {[%clk 0:00:45]}  Bd4+ {[%clk 0:01:18]} 20. Rxd4 {[%clk 0:00:45]}  cxd4 {[%clk 0:01:19]} 21. hxg4 {[%clk 0:00:45]}  dxc3 {[%clk 0:01:20]} 22. bxc3 {[%clk 0:00:44]}  Rad8 {[%clk 0:01:14]} 23. Be3 {[%clk 0:00:44]}  h5 {[%clk 0:00:50]} 24. gxh5 {[%clk 0:00:38]}  gxh5 {[%clk 0:00:51]} 25. Rf1 {[%clk 0:00:34]}  Qg4 {[%clk 0:00:49]} 26. Rf3 {[%clk 0:00:17]}  Kh7 {[%clk 0:00:45]} 27. Kh2 {[%clk 0:00:18]}  Rg8 {[%clk 0:00:45]} 28. Bd4 {[%clk 0:00:12]}  Rdf8 {[%clk 0:00:28]} 29. Qf2 {[%clk 0:00:12]}  h4 {[%clk 0:00:19]} 30. Be5 {[%clk 0:00:11]}  Rg6 {[%clk 0:00:18]} 31. Rh3 {[%clk 0:00:09]}  Rh6 {[%clk 0:00:15]} 32. Bxc7 {[%clk 0:00:09]}  Rg8 {[%clk 0:00:13]} 33. Be5 {[%clk 0:00:06]}  Qg3+ {[%clk 0:00:12]} 34. Qxg3 {[%clk 0:00:04]}  hxg3+ {[%clk 0:00:13]} 35. Kg1 {[%clk 0:00:05]}  Rxh3 {[%clk 0:00:13]} 36. gxh3 {[%clk 0:00:06]}  Rd8 {[%clk 0:00:08]} 37. Bd4 {[%clk 0:00:02]}  c5 {[%clk 0:00:07]} 38. Bxc5 {[%clk 0:00:02]}  Rd1+ {[%clk 0:00:06]} 39. Kg2 {[%clk 0:00:01]}  Rd2+ {[%clk 0:00:06]} 40. Kxg3 {[%clk 0:00:02]}  Rxa2 {[%clk 0:00:07]} 41. f5 {[%clk 0:00:02]}  exf5 {[%clk 0:00:07]} 42. exf5 {[%clk 0:00:03]}  a5 {[%clk 0:00:07]} 43. Kf4 {[%clk 0:00:03]}  a4 {[%clk 0:00:08]} 44. Ke5 {[%clk 0:00:02]}  a3 {[%clk 0:00:06]} 45. f6 {[%clk 0:00:01]}  Re2+ {[%clk 0:00:06]} 46. Kd5 {[%clk 0:00:02]}  a2 {[%clk 0:00:02]} 47. f7 {[%clk 0:00:02]}  Rd2+ {[%clk 0:00:02]} 48. Kc4 {[%clk 0:00:02]}  Rd8 {[%clk 0:00:02]} 49. f8=Q {[%clk 0:00:03]}  Rxf8 {[%clk 0:00:02]} 50. Bxf8 {[%clk 0:00:03]}  a1=Q {[%clk 0:00:03]} 51. Bb4 {[%clk 0:00:03]}  Qa2+ {[%clk 0:00:04]} 52. Kb5 {[%clk 0:00:04]}  Kg6 {[%clk 0:00:05]} 0-1


[Site "https://www.chess.com"]

[Event "Titled Tuesday Blitz March 29 Late 2022"]
[White "Erdogdu, Mert"]
[Black "Baches Garcia, Guillermo"]
[WhiteFideId "6301495"]
[BlackFideId "2209764"]
[WhiteElo "2485"]
[BlackElo "2484"]
[Result "1/2-1/2"]
[Round "05"]
[TimeControl "180+1"]
[Date "2022.03.30"]
[WhiteClock "0:00:53"]
[BlackClock "0:00:15"]

1. e4 {[%clk 0:03:00]}  c5 {[%clk 0:03:00]} 2. Nf3 {[%clk 0:03:01]}  d6 {[%clk 0:03:00]} 3. d4 {[%clk 0:03:01]}  cxd4 {[%clk 0:03:01]} 4. Nxd4 {[%clk 0:03:02]}  Nf6 {[%clk 0:03:02]} 5. Nc3 {[%clk 0:03:03]}  Nc6 {[%clk 0:03:02]} 6. Bg5 {[%clk 0:03:03]}  e6 {[%clk 0:03:03]} 7. Qd2 {[%clk 0:03:03]}  h6 {[%clk 0:03:03]} 8. Be3 {[%clk 0:03:03]}  Ng4 {[%clk 0:03:03]} 9. O-O-O {[%clk 0:02:57]}  Nxe3 {[%clk 0:03:01]} 10. Qxe3 {[%clk 0:02:57]}  a6 {[%clk 0:02:56]} 11. Kb1 {[%clk 0:02:56]}  Bd7 {[%clk 0:02:54]} 12. f4 {[%clk 0:02:32]}  Be7 {[%clk 0:02:54]} 13. f5 {[%clk 0:02:23]}  O-O {[%clk 0:02:41]} 14. fxe6 {[%clk 0:02:21]}  fxe6 {[%clk 0:02:40]} 15. Bc4 {[%clk 0:02:21]}  Nxd4 {[%clk 0:02:33]} 16. Qxd4 {[%clk 0:02:17]}  b5 {[%clk 0:02:18]} 17. Bb3 {[%clk 0:02:16]}  Kh8 {[%clk 0:02:01]} 18. Qd3 {[%clk 0:02:01]}  b4 {[%clk 0:01:35]} 19. Ne2 {[%clk 0:01:57]}  Bb5 {[%clk 0:01:30]} 20. Bc4 {[%clk 0:01:51]}  Qb6 {[%clk 0:01:18]} 21. Nd4 {[%clk 0:01:46]}  d5 {[%clk 0:01:08]} 22. exd5 {[%clk 0:01:39]}  exd5 {[%clk 0:01:08]} 23. Bxb5 {[%clk 0:01:39]}  axb5 {[%clk 0:01:08]} 24. Qxb5 {[%clk 0:01:16]}  Qa7 {[%clk 0:01:03]} 25. Qxd5 {[%clk 0:01:14]}  Rfd8 {[%clk 0:00:50]} 26. Qc4 {[%clk 0:01:05]}  b3 {[%clk 0:00:41]} 27. a3 {[%clk 0:00:55]}  Bxa3 {[%clk 0:00:19]} 28. bxa3 {[%clk 0:00:52]}  Qxa3 {[%clk 0:00:18]} 29. Nxb3 {[%clk 0:00:51]}  Qa2+ {[%clk 0:00:18]} 30. Kc1 {[%clk 0:00:52]}  Qa3+ {[%clk 0:00:18]} 31. Kb1 {[%clk 0:00:52]}  Qa2+ {[%clk 0:00:18]} 32. Kc1 {[%clk 0:00:53]}  Qa3+ {[%clk 0:00:15]} 33. Kb1 {[%clk 0:00:53]} 1/2-1/2


[Site "https://www.chess.com"]